fUSD/lending_fUSD_20260202
["ID","MTS","AMOUNT","RATE_DAILY","PERIOD"]
[404291011,1770037840360,-2529.82108988,0.00011604,2]
[404291012,1770037840594,-4635.17891012,0.00011604,2]
[404291013,1770037840603,-500.0,0.00011604,2]
[404291014,1770037840614,-500.0,0.00011604,2]
[404291015,1770037840624,-500.0,0.00011604,2]
[404291016,1770037840633,-500.0,0.00011604,2]
[404291017,1770037840642,-500.0,0.00011604,2]
[404291018,1770037840651,-200.0,0.00011652,2]
[404291019,1770037840660,-151.0,0.00011652,2]
[404291020,1770037840670,-151.0,0.00011652,2]
[404291021,1770037840679,-151.0,0.00011652,2]
[404291022,1770037840688,-151.0,0.00011652,2]
[404291023,1770037840698,-151.0,0.00011652,2]
[404291024,1770037840707,-151.0,0.00011652,2]
[404291025,1770037840716,-500.0,0.00011652,2]
[404291026,1770037840726,-500.0,0.00011652,2]
[404291027,1770037840735,-151.0,0.00011652,2]
[404291028,1770037840745,-500.0,0.00011652,2]
[404291029,1770037840754,-151.0,0.00011652,2]
[404291030,1770037840763,-500.0,0.00011652,2]
[404291031,1770037840773,-151.0,0.00011652,2]
[404291032,1770037840782,-500.0,0.00011652,2]
[404291033,1770037840793,-151.0,0.00011652,2]
[404291034,1770037840802,-500.0,0.00011652,2]
[404291035,1770037840812,-151.0,0.00011652,2]
[404291036,1770037840821,-500.0,0.00011652,2]
[404291037,1770037840831,-151.0,0.00011652,2]
[404291038,1770037840840,-500.0,0.00011652,2]
[404291039,1770037840849,-151.0,0.00011652,2]
[404291040,1770037840859,-500.0,0.00011652,2]
[404291041,1770037840868,-151.0,0.00011652,2]
[404291042,1770037840877,-500.0,0.00011652,2]
[404291043,1770037840887,-151.0,0.00011652,2]
[404291044,1770037840896,-500.0,0.00011652,2]
[404291045,1770037840905,-151.0,0.00011652,2]
[404291046,1770037840915,-151.0,0.00011652,2]
[404291047,1770037840924,-151.0,0.00011652,2]
[404291048,1770037840933,-151.0,0.00011652,2]
[404291049,1770037840943,-151.0,0.00011652,2]
[404291050,1770037840953,-151.0,0.00011652,2]
[404291051,1770037840963,-151.0,0.00011652,2]
[404291052,1770037840972,-151.0,0.00011652,2]
[404291053,1770037840982,-151.0,0.00011652,2]
[404291054,1770037840991,-500.0,0.00011652,2]
[404291055,1770037841000,-151.0,0.00011652,2]
[404291056,1770037841010,-500.0,0.00011652,2]
[404291057,1770037841019,-500.0,0.00011652,2]
[404291058,1770037841028,-151.0,0.00011652,2]
[404291059,1770037841038,-200.0,0.00011652,2]
[404291060,1770037841047,-151.0,0.00011652,2]
[404291061,1770037841056,-151.0,0.00011652,2]
[404291062,1770037841065,-151.0,0.00011652,2]
[404291063,1770037841074,-500.0,0.00011652,2]
[404291064,1770037841083,-151.0,0.00011652,2]
[404291065,1770037841092,-500.0,0.00011652,2]
[404291066,1770037841102,-151.0,0.00011652,2]
[404291067,1770037841113,-500.0,0.00011652,2]
[404291068,1770037841123,-500.0,0.00011652,2]
[404291069,1770037841132,-500.0,0.00011652,2]
[404291070,1770037841142,-500.0,0.00011652,2]
[404291071,1770037841151,-500.0,0.00011652,2]
[404291072,1770037841160,-500.0,0.00011652,2]
[404291073,1770037841172,-500.0,0.00011652,2]
[404291074,1770037841182,-162.39977496,0.00011658,2]
[404291075,1770037841195,-462.02409839,0.00011658,2]
[404291076,1770037841205,-200.0,0.00011658,2]
[404291077,1770037841214,-388.17458479,0.00011659,2]
[404291078,1770037841224,-4999.99,0.00011659,2]
[404291079,1770037841235,-2979.54,0.00011659,2]
[404291080,1770037841245,-150.99,0.00011659,2]
[404291081,1770037841256,-150.99,0.00011659,2]
[404291082,1770037841265,-9999.99,0.00011659,2]
[404291083,1770037841274,-9999.99,0.00011659,2]
[404291084,1770037841283,-24463.4,0.00011659,2]
[404291085,1770037841294,-299.99,0.00011659,2]
[404291086,1770037841303,-9999.99,0.00011659,2]
[404291087,1770037841312,-1317.44,0.00011659,2]
[404291088,1770037841322,-17811.16,0.00011659,2]
[404291089,1770037841332,-499.99,0.00011659,2]
[404291090,1770037841341,-999.99,0.00011659,2]
[404291091,1770037841350,-226.74400397,0.00011659,2]
[404291092,1770037841359,-7165.0,0.00011659,2]
[404291093,1770037841368,-500.0,0.00011659,2]
[404291094,1770037841378,-500.0,0.00011659,2]
[404291095,1770037841387,-7165.0,0.00011714,2]
[404291096,1770037841395,-500.0,0.00011714,2]
[404291097,1770037841406,-500.0,0.00011714,2]
[404291098,1770037841415,-1000.0,0.00011759,2]
[404291099,1770037841425,-7165.0,0.00011769,2]
[404291100,1770037841435,-200.0,0.00011775,2]
[404291101,1770037841447,-7165.0,0.00011823,2]
[404291102,1770037841456,-7165.0,0.00011878,2]
[404291103,1770037841465,-200.0,0.00011892,2]
[404291104,1770037841474,-7165.0,0.00011933,2]
[404291105,1770037841483,-1380.0,0.00011985,2]
[404291106,1770037841491,-7165.0,0.00011988,2]
[404291107,1770037841501,-390.0,0.00012,2]
[404291108,1770037841511,-160.0,0.00012,2]
[404291109,1770037841521,-978.0,0.00012009,2]
[404291110,1770037841531,-186.04289545,0.00012011,2]
[404291111,1770037841540,-810.0,0.00012028,2]
[404291112,1770037841548,-1215.0,0.00012033,2]
[404291113,1770037841558,-7165.0,0.00012043,2]
[404291114,1770037841567,-7764.82,0.00012071,2]
[404291115,1770037841578,-150.0,0.00012094,2]
[404291116,1770037841591,-7165.0,0.00012097,2]
[404291117,1770037841602,-7165.0,0.00012152,2]
[404291118,1770037841611,-11689.16081767,0.00012175,2]
[404291119,1770037841620,-202.25964161,0.000122,2]
[404291120,1770037841629,-500.0,0.000122,2]
[404291121,1770037841640,-160.0,0.000122,2]
[404291122,1770037841649,-7165.0,0.00012207,2]
[404291123,1770037841659,-1013.85,0.00012225,2]
[404291124,1770037841669,-1852.42,0.0001223,2]
[404291125,1770037841680,-7165.0,0.00012262,2]
[404291126,1770037841690,-13399.44937959,0.00012264,2]
[404291127,1770037841702,-7165.0,0.00012317,2]
[404291128,1770037841711,-7165.0,0.00012371,2]
[404291129,1770037841729,-7165.0,0.00012426,2]
[404291130,1770037841739,-7165.0,0.00012481,2]
[404291131,1770037841749,-500.0,0.00012512,2]
[404291132,1770037841758,-7165.0,0.00012536,2]
[404291133,1770037841767,-7165.0,0.0001259,2]
[404291134,1770037841777,-255.0,0.00012621,2]
[404291135,1770037841787,-7169.61609587,0.00012645,2]
[404291136,1770037841796,-300.0,0.00012704,2]
[404291137,1770037841806,-1680.0,0.00012714,2]
[404291138,1770037841816,-300.0,0.00012715,2]
[404291139,1770037841826,-250.0,0.00012715,2]
[404291140,1770037841835,-500.0,0.00012715,2]
[404291141,1770037841845,-500.0,0.00012748,2]
[404291142,1770037841854,-3009.87,0.00012756,2]
[404291143,1770037841864,-152.49,0.00012861,2]
[404291144,1770037841873,-150.0,0.00012873,2]
[404291145,1770037841883,-11689.16081767,0.0001289,2]
[404291146,1770037841892,-294.02,0.00012918,2]
[404291147,1770037841902,-500.0,0.00012967,2]
[404291148,1770037841912,-234.91446622,0.00012967,2]
[404291149,1770037841922,-13399.44937959,0.00012968,2]
[404291150,1770037841931,-493.56259035,0.00013144,2]
[404291151,1770037841941,-500.0,0.00013296,2]
[404291152,1770037841951,-631.73,0.00013483,2]
[404291153,1770037841960,-500.0,0.00013489,2]
[404291154,1770037841970,-150.0,0.00013489,2]
[404291155,1770037841980,-500.0,0.00013544,2]
[404291156,1770037841990,-150.0,0.00013544,2]
[404291157,1770037841999,-150.0,0.00013599,2]
[404291158,1770037842008,-500.0,0.00013599,2]
[404291159,1770037842018,-11689.16081767,0.00013606,2]
[404291160,1770037842027,-150.0,0.00013653,2]
[404291161,1770037842037,-500.0,0.00013653,2]
[404291162,1770037842048,-13399.44937959,0.00013673,2]
[404291163,1770037842059,-500.0,0.00013698,2]
[404291164,1770037842069,-500.0,0.00013698,2]
[404291165,1770037842082,-310.72048062,0.00013698,2]
[404291166,1770037842092,-500.0,0.00013698,2]
[404291167,1770037842103,-500.0,0.00013698,2]
[404291168,1770037842115,-500.0,0.00013698,2]
[404291169,1770037842125,-500.0,0.00013698,2]
[404291170,1770037842135,-500.0,0.00013698,2]
[404291171,1770037842145,-500.0,0.00013698,2]
[404291172,1770037842157,-500.0,0.00013698,2]
[404291173,1770037842174,-500.0,0.00013698,2]
[404291174,1770037842184,-500.0,0.00013698,2]
[404291175,1770037842197,-500.0,0.00013698,2]
[404291176,1770037842207,-500.0,0.00013698,2]
[404291177,1770037842218,-277.632,0.00013698,2]
[404291178,1770037842228,-500.0,0.00013698,2]
[404291179,1770037842240,-500.0,0.00013698,2]
[404291180,1770037842249,-500.0,0.00013698,2]
[404291181,1770037842258,-500.0,0.00013698,2]
[404291182,1770037842271,-500.0,0.00013698,2]
[404291183,1770037842281,-503.69401691,0.00013698,2]
[404291184,1770037842290,-500.0,0.00013698,2]
[404291185,1770037842299,-500.0,0.00013698,2]
[404291186,1770037842308,-500.0,0.00013698,2]
[404291187,1770037842317,-500.0,0.00013698,2]
[404291188,1770037842327,-500.0,0.00013698,2]
[404291189,1770037842336,-519.14978785,0.00013698,2]
[404291190,1770037842346,-506.4463116,0.00013698,2]
[404291191,1770037842355,-500.0,0.00013698,2]
[404291192,1770037842365,-500.0,0.00013698,2]
[404291193,1770037842374,-500.0,0.00013698,2]
[404291194,1770037842383,-500.0,0.00013698,2]
[404291195,1770037842393,-500.0,0.00013698,2]
[404291196,1770037842402,-500.0,0.00013698,2]
[404291197,1770037842411,-500.0,0.00013698,2]
[404291198,1770037842420,-500.0,0.00013698,2]
[404291199,1770037842429,-587.5541255,0.00013698,2]
[404291200,1770037842439,-500.0,0.00013698,2]
[404291201,1770037842448,-500.0,0.00013698,2]
[404291202,1770037842462,-500.0,0.00013698,2]
[404291203,1770037842471,-500.0,0.00013698,2]
[404291204,1770037842481,-500.0,0.00013698,2]
[404291205,1770037842490,-500.0,0.00013698,2]
[404291206,1770037842499,-523.26417397,0.00013698,2]
[404291207,1770037842509,-500.0,0.00013698,2]
[404291208,1770037842519,-496.93460441,0.00013698,2]
[404291209,1770037842528,-500.0,0.00013698,2]
[404291210,1770037842537,-500.0,0.00013698,2]
[404291211,1770037842546,-500.0,0.00013698,2]
[404291212,1770037842556,-500.0,0.00013698,2]
[404291213,1770037842566,-500.0,0.00013698,2]
[404291214,1770037842575,-500.0,0.00013698,2]
[404291215,1770037842584,-500.0,0.00013698,2]
[404291216,1770037842593,-500.0,0.00013698,2]
[404291217,1770037842604,-500.0,0.00013698,2]
[404291218,1770037842614,-500.0,0.00013698,2]
[404291219,1770037842624,-500.0,0.00013698,2]
[404291220,1770037842634,-159.30915247,0.00013698,2]
[404291221,1770037842643,-500.0,0.00013698,2]
[404291222,1770037842653,-500.0,0.00013698,2]
[404291223,1770037842663,-500.0,0.00013698,2]
[404291224,1770037842672,-500.0,0.00013698,2]
[404291225,1770037842683,-500.0,0.00013698,2]
[404291226,1770037842692,-500.0,0.00013698,2]
[404291227,1770037842703,-500.0,0.00013698,2]
[404291228,1770037842712,-500.0,0.00013698,2]
[404291229,1770037842721,-500.0,0.00013698,2]
[404291230,1770037842730,-500.0,0.00013698,2]
[404291231,1770037842741,-500.0,0.00013698,2]
[404291232,1770037842751,-500.0,0.00013698,2]
[404291233,1770037842761,-504.83472388,0.00013698,2]
[404291234,1770037842770,-500.0,0.00013698,2]
[404291235,1770037842779,-500.0,0.00013698,2]
[404291236,1770037842789,-150.0,0.00013699,2]
[404291237,1770037842799,-150.0,0.00013699,2]
[404291238,1770037842808,-150.0,0.00013699,2]
[404291239,1770037842821,-202.55145543,0.00013699,2]
[404291240,1770037842831,-207.33206215,0.00013708,2]
[404291241,1770037842840,-158.43558998,0.00013708,2]
[404291242,1770037842850,-150.0,0.00013754,2]
[404291243,1770037842860,-150.0,0.00013754,2]
[404291244,1770037842870,-150.0,0.00013754,2]
[404291245,1770037842880,-433.0,0.00013777,2]
[404291246,1770037842889,-200.0,0.00013809,2]
[404291247,1770037842899,-200.0,0.00013809,2]
[404291248,1770037842908,-200.0,0.00013809,2]
[404291249,1770037842918,-500.0,0.00013844,2]
[404291250,1770037842927,-150.0,0.00013867,2]
[404291251,1770037842937,-151.0,0.0001396,2]
[404291252,1770037842948,-151.0,0.00013963,2]
[404291253,1770037842958,-500.0,0.00013972,2]
[404291254,1770037842968,-151.0,0.00013973,2]
[404291255,1770037842978,-500.0,0.00013973,2]
[404291256,1770037842988,-500.125501,0.00013973,2]
[404291257,1770037842998,-501.73498825,0.00013973,2]
[404291258,1770037843008,-500.0,0.00013973,2]
[404291259,1770037843021,-500.0,0.00013973,2]
[404291260,1770037843030,-500.0,0.00013973,2]
[404291261,1770037843040,-500.0,0.00013973,2]
[404291262,1770037843049,-500.0,0.00013973,2]
[404291263,1770037843059,-500.0,0.00013973,2]
[404291264,1770037843068,-500.7756559,0.00013973,2]
[404291265,1770037843077,-501.3792678,0.00013973,2]
[404291266,1770037843087,-177.72668829,0.00013973,2]
[404291267,1770037843096,-500.0,0.00013973,2]
[404291268,1770037843106,-407.76648186,0.00013973,2]
[404291269,1770037843116,-500.25858274,0.00013973,2]
[404291270,1770037843126,-500.0,0.00013973,2]
[404291271,1770037843136,-500.72885739,0.00013973,2]
[404291272,1770037843147,-501.63214179,0.00013973,2]
[404291273,1770037843156,-501.92550309,0.00013973,2]
[404291274,1770037843166,-500.0,0.00013973,2]
[404291275,1770037843176,-169.68447442,0.00013973,2]
[404291276,1770037843186,-217.67941742,0.00013973,2]
[404291277,1770037843200,-500.0,0.00013973,2]
[404291278,1770037843210,-500.0,0.00013973,2]
[404291279,1770037843222,-500.0,0.00013973,2]
[404291280,1770037843232,-500.0,0.00013973,2]
[404291281,1770037843243,-502.08630152,0.00013973,2]
[404291282,1770037843252,-500.0,0.00013973,2]
[404291283,1770037843261,-500.0,0.00013973,2]
[404291284,1770037843273,-500.80142863,0.00013973,2]
[404291285,1770037843283,-500.0,0.00013973,2]
[404291286,1770037843293,-500.0,0.00013973,2]
[404291287,1770037843304,-503.39541784,0.00013973,2]
[404291288,1770037843313,-500.0,0.00013973,2]
[404291289,1770037843325,-200.0,0.00013974,2]
[404291290,1770037843335,-2351.0,0.00013985,2]
[404291291,1770037843345,-25228.24,0.00013986,2]
[404291292,1770037843355,-910.54547353,0.0001408,2]
[404291293,1770037843364,-11689.16081767,0.00014322,2]
[404291294,1770037843374,-13399.44937959,0.00014377,2]
[404291295,1770037843385,-500.0,0.00014392,2]
[404291296,1770037843394,-500.0,0.0001452,2]
[404291297,1770037843406,-277.94683753,0.00014521,2]
[404291298,1770037843416,-1000.0,0.00014521,2]
[404291299,1770037843427,-1000.0,0.00014521,2]
[404291300,1770037843438,-500.0,0.00014521,2]
[404291301,1770037843448,-1000.0,0.00014521,2]
[404291302,1770037843457,-514.08429044,0.00014521,2]
[404291303,1770037843466,-845.5316297,0.00014521,2]
[404291304,1770037843476,-320.13324944,0.00014521,2]
[404291305,1770037843486,-504.42982336,0.00014521,2]
[404291306,1770037843496,-181.57502123,0.00014521,2]
[404291307,1770037843508,-1000.0,0.00014521,2]
[404291308,1770037843519,-463.7080185,0.00014521,2]
[404291309,1770037843530,-445.7560689,0.00014521,2]
[404291310,1770037843540,-500.90033899,0.00014521,2]
[404291311,1770037843551,-259.40505883,0.00014521,2]
[404291312,1770037843560,-824.13265253,0.00014521,2]
[404291313,1770037843570,-1000.0,0.00014521,2]
[404291314,1770037843579,-3375.09888296,0.00014581,2]
[404291315,1770037843589,-8906.93935141,0.00014581,2]
[404291316,1770037843600,-15712.89678914,0.00014581,2]
[404291317,1770037843610,-493.56259035,0.0001473,2]
[404291318,1770037843621,-500.0,0.00014877,2]
[404291320,1770037843632,-500.0,0.0001494,2]
[404291321,1770037843642,-250.0,0.00015,2]
[404291322,1770037843652,-11689.16081767,0.00015037,2]
[404291323,1770037843663,-311.0,0.00015048,2]
[404291325,1770037843673,-642.79089811,0.00015068,2]
[404291327,1770037843684,-179.20533301,0.00015068,2]
[404291328,1770037843695,-1500.0,0.00015068,2]
[404291329,1770037843704,-1500.0,0.00015068,2]
[404291330,1770037843715,-503.26586101,0.00015068,2]
[404291331,1770037843725,-900.0,0.00015068,2]
[404291332,1770037843735,-13399.44937959,0.00015082,2]
[404291333,1770037843745,-250.0,0.00015273,2]
[404291334,1770037843754,-3292.0,0.00015384,2]
[404291335,1770037843763,-152.49,0.00015404,2]
[404291336,1770037843773,-614.02070577,0.00015473,2]
[404291337,1770037843789,-276.31975293,0.00015473,2]
[404291338,1770037843803,-500.0,0.00015473,2]
[404291339,1770037843812,-160.29154918,0.00015473,2]
[404291340,1770037843822,-172.55407355,0.00015473,2]
[404291341,1770037843832,-500.0,0.00015473,2]
[404291342,1770037843842,-163.45412131,0.00015473,2]
[404291343,1770037843852,-500.0,0.00015473,2]
[404291344,1770037843862,-156.36625295,0.00015473,2]
[404291345,1770037843871,-500.3077923,0.00015473,2]
[404291346,1770037843882,-500.0,0.00015473,2]
[404291347,1770037843892,-500.0,0.00015473,2]
[404291348,1770037843903,-500.0,0.00015473,2]
[404291349,1770037843913,-500.0,0.00015473,2]
[404291350,1770037843924,-500.0,0.00015473,2]
[404291351,1770037843934,-500.0,0.00015473,2]
[404291352,1770037843945,-500.0,0.00015473,2]
[404291353,1770037843956,-500.0,0.00015473,2]
[404291354,1770037843969,-500.0,0.00015473,2]
[404291355,1770037843980,-208.45321153,0.00015473,2]
[404291356,1770037843992,-500.0,0.00015473,2]
[404291357,1770037844002,-500.0,0.00015473,2]
[404291358,1770037844013,-500.0,0.00015473,2]
[404291359,1770037844023,-162.00308214,0.00015473,2]
[404291360,1770037844034,-500.94603502,0.00015473,2]
[404291361,1770037844043,-161.56165826,0.00015473,2]
[404291362,1770037844053,-500.0,0.00015473,2]
[404291363,1770037844062,-500.0,0.00015473,2]
[404291364,1770037844072,-500.0,0.00015473,2]
[404291365,1770037844082,-500.0,0.00015473,2]
[404291366,1770037844091,-500.0,0.00015473,2]
[404291367,1770037844100,-500.0,0.00015473,2]
[404291368,1770037844110,-161.22024348,0.00015473,2]
[404291369,1770037844119,-500.0,0.00015473,2]
[404291370,1770037844129,-500.0,0.00015473,2]
[404291371,1770037844139,-500.0,0.00015473,2]
[404291372,1770037844149,-500.0,0.00015473,2]
[404291373,1770037844159,-500.0,0.00015473,2]
[404291374,1770037844173,-500.0,0.00015473,2]
[404291375,1770037844182,-500.0,0.00015473,2]
[404291376,1770037844192,-160.21939493,0.00015473,2]
[404291377,1770037844205,-500.0,0.00015473,2]
[404291378,1770037844214,-500.0,0.00015473,2]
[404291379,1770037844223,-561.0437287,0.00015473,2]
[404291380,1770037844234,-598.12324011,0.00015473,2]
[404291381,1770037844244,-375.67609923,0.00015473,2]
[404291382,1770037844253,-157.58038737,0.00015473,2]
[404291383,1770037844263,-210.48898828,0.00015473,2]
[404291384,1770037844274,-160.23028279,0.00015473,2]
[404291385,1770037844284,-182.51028613,0.00015473,2]
[404291386,1770037844294,-160.15877828,0.00015473,2]
[404291387,1770037844304,-500.0,0.00015473,2]
[404291388,1770037844313,-333.70848023,0.00015473,2]
[404291389,1770037844323,-500.0,0.00015473,2]
[404291390,1770037844332,-392.98525694,0.00015473,2]
[404291391,1770037844342,-162.17608844,0.00015473,2]
[404291392,1770037844351,-500.0,0.00015473,2]
[404291393,1770037844361,-284.54369346,0.00015473,2]
[404291394,1770037844371,-500.5035407,0.00015473,2]
[404291395,1770037844381,-208.90708764,0.00015473,2]
[404291396,1770037844390,-512.5629948,0.00015473,2]
[404291397,1770037844400,-500.0,0.00015473,2]
[404291398,1770037844409,-509.53769214,0.00015473,2]
[404291399,1770037844419,-500.0,0.00015473,2]
[404291400,1770037844428,-500.0,0.00015473,2]
[404291401,1770037844438,-500.0,0.00015473,2]
[404291402,1770037844448,-160.20576125,0.00015473,2]
[404291403,1770037844457,-500.0,0.00015473,2]
[404291404,1770037844722,-500.0,0.00015473,2]
[404291405,1770037844732,-500.0,0.00015473,2]
[404291406,1770037844741,-500.0,0.00015473,2]
[404291407,1770037844751,-500.0,0.00015473,2]
[404291408,1770037844760,-500.0,0.00015473,2]
[404291409,1770037844770,-165.99105877,0.00015473,2]
[404291410,1770037844780,-500.60328487,0.00015473,2]
[404291411,1770037844789,-471.68773156,0.00015473,2]
[404291412,1770037844799,-164.83531024,0.00015473,2]
[404291413,1770037844808,-500.49248078,0.00015473,2]
[404291414,1770037844817,-500.64291995,0.00015473,2]
[404291415,1770037844827,-161.28515099,0.00015473,2]
[404291416,1770037844837,-500.0,0.00015473,2]
[404291417,1770037844846,-162.7403078,0.00015473,2]
[404291418,1770037844860,-500.0,0.00015473,2]
[404291419,1770037844869,-500.0,0.00015473,2]
[404291420,1770037844879,-309.3970797,0.00015473,2]
[404291421,1770037844888,-620.64310817,0.00015473,2]
[404291422,1770037844898,-169.78516788,0.00015473,2]
[404291423,1770037844908,-500.0,0.00015473,2]
[404291424,1770037844918,-500.0,0.00015473,2]
[404291425,1770037844927,-500.0,0.00015473,2]
[404291426,1770037844936,-161.48396035,0.00015473,2]
[404291427,1770037844945,-500.0,0.00015473,2]
[404291428,1770037844955,-500.0,0.00015473,2]
[404291429,1770037844964,-500.0,0.00015473,2]
[404291430,1770037844974,-500.0,0.00015488,2]
[404291431,1770037844983,-294.02,0.00015491,2]
[404291432,1770037844993,-777.64620196,0.00015616,2]
[404291433,1770037845003,-892.5604124,0.00015616,2]
[404291434,1770037845012,-159.99318318,0.00015751,2]
[404291435,1770037845022,-13609.0,0.00015753,2]
[404291436,1770037845031,-11689.16081767,0.00015753,2]
[404291437,1770037845040,-13399.44937959,0.00015786,2]
[404291438,1770037845050,-3992.56342833,0.0001596,2]
[404291439,1770037845059,-500.0,0.0001602,2]
[404291440,1770037845068,-502.28798495,0.00016021,2]
[404291441,1770037845077,-1000.0,0.00016021,2]
[404291442,1770037845087,-1000.0,0.00016021,2]
[404291443,1770037845096,-1000.0,0.00016021,2]
[404291444,1770037845105,-899.10712823,0.00016021,2]
[404291445,1770037845115,-1003.91068608,0.00016021,2]
[404291446,1770037845124,-1000.0,0.00016021,2]
[404291447,1770037845133,-1000.0,0.00016021,2]
[404291448,1770037845142,-1000.0,0.00016021,2]
[404291449,1770037845152,-501.89927416,0.00016021,2]
[404291450,1770037845162,-1000.0,0.00016021,2]
[404291451,1770037845172,-1000.0,0.00016021,2]
[404291452,1770037845182,-1000.0,0.00016021,2]
[404291453,1770037845192,-1000.0,0.00016021,2]
[404291454,1770037845206,-176.00718556,0.00016021,2]
[404291455,1770037845215,-1000.0,0.00016021,2]
[404291456,1770037845225,-1000.0,0.00016021,2]
[404291457,1770037845236,-1000.0,0.00016021,2]
[404291458,1770037845251,-501.09302375,0.00016021,2]
[404291459,1770037845260,-1000.0,0.00016021,2]
[404291460,1770037845270,-1000.0,0.00016021,2]
[404291461,1770037845280,-432.98187369,0.00016021,2]
[404291462,1770037845290,-1000.0,0.00016021,2]
[404291463,1770037845299,-501.94112039,0.00016021,2]
[404291464,1770037845308,-1000.0,0.00016021,2]
[404291465,1770037845318,-586.45296103,0.00016021,2]
[404291466,1770037845327,-1003.27979337,0.00016021,2]
[404291467,1770037845336,-1000.0,0.00016021,2]
[404291468,1770037845346,-1000.0,0.00016021,2]
[404291469,1770037845355,-1000.0,0.00016021,2]
[404291470,1770037845364,-500.95616571,0.00016021,2]
[404291471,1770037845375,-1000.0,0.00016021,2]
[404291472,1770037845385,-291.61164288,0.00016021,2]
[404291473,1770037845394,-1000.0,0.00016021,2]
[404291474,1770037845404,-1000.0,0.00016021,2]
[404291475,1770037845414,-1000.0,0.00016021,2]
[404291476,1770037845424,-1000.0,0.00016021,2]
[404291477,1770037845434,-501.08336444,0.00016021,2]
[404291478,1770037845443,-1000.0,0.00016021,2]
[404291479,1770037845453,-1000.0,0.00016021,2]
[404291480,1770037845462,-1000.0,0.00016021,2]
[404291481,1770037845471,-1000.0,0.00016021,2]
[404291482,1770037845481,-1000.0,0.00016021,2]
[404291483,1770037845491,-1000.0,0.00016021,2]
[404291484,1770037845501,-987.31307274,0.00016021,2]
[404291485,1770037845511,-1000.0,0.00016021,2]
[404291486,1770037845522,-282.06,0.00016032,2]
[404291487,1770037845532,-500.0,0.00016036,2]
[404291488,1770037845542,-305.66548204,0.00016106,2]
[404291489,1770037845552,-3412.42,0.00016116,2]
[404291490,1770037845562,-174.61919141,0.00016275,2]
[404291491,1770037845572,-578.20924308,0.00016275,2]
[404291492,1770037845582,-721.12765535,0.00016275,2]
[404291493,1770037845592,-500.0,0.00016275,2]
[404291494,1770037845601,-500.0,0.00016275,2]
[404291495,1770037845611,-1428.38747117,0.00016275,2]
[404291496,1770037845620,-500.0,0.00016275,2]
[404291497,1770037845630,-500.0,0.00016275,2]
[404291498,1770037845642,-250.0,0.00016275,2]
[404291499,1770037845651,-500.0,0.00016275,2]
[404291500,1770037845661,-250.0,0.00016275,2]
[404291501,1770037845670,-250.0,0.00016275,2]
[404291502,1770037845680,-500.0,0.00016275,2]
[404291503,1770037845690,-250.0,0.00016275,2]
[404291504,1770037845699,-500.0,0.00016275,2]
[404291505,1770037845708,-250.0,0.00016275,2]
[404291506,1770037845718,-500.0,0.00016275,2]
[404291507,1770037845727,-250.0,0.00016275,2]
[404291508,1770037845736,-500.0,0.00016275,2]
[404291509,1770037845746,-250.0,0.00016275,2]
[404291510,1770037845756,-500.0,0.00016275,2]
[404291511,1770037845765,-250.0,0.00016275,2]
[404291512,1770037845774,-500.0,0.00016275,2]
[404291513,1770037845784,-250.0,0.00016275,2]